Cogmind - Beta 15 @@@ ROGUE MODE // 2025.06.08 @ 15:43:01 Player: Candle Result: Destroyed by YI-UF0 with YI-UF0's Doublenader Performance ------------- Evolutions (0) 0 Regions Visited (4) 800 Robots Destroyed (29) 145 Value Destroyed (437) 437 Prototype IDs (23) 460 Alien Tech Used (0) 0 Bonus (300) 300 TOTAL SCORE: 2142 Bonus ------- Aligned with FarCom 300 Cogmind --------- Core Integrity 0/250 Matter 228/300 Energy 100/100 System Corruption 0% Temperature Warm (181) Movement Treading (320) Ox2 Location -9/Mines Parts ------- > --- POWER (1) -------- (None) > --- PROPULSION (2) --- Light Treads > --- UTILITY (2) ------ High-capacity Storage Unit Hacking Suite > --- WEAPON (2) ------- Heavy Assault Rifle Improved Light Cannon > --- INVENTORY (20) --- Light Ion Engine Light Treads Light Treads Light Treads Compact Wheel Medium Storage Unit Large Storage Unit Large Battery (200) Light Armor Plating Skeleton Box Small Laser Small Laser Beam Rifle Heavy Assault Rifle Grenade Launcher Hammer Peak State ------------ > --- POWER ------------ Improved Ion Engine > --- PROPULSION ------- Light Treads Light Treads > --- UTILITY ---------- High-capacity Storage Unit Hacking Suite > --- WEAPON ----------- Beam Rifle Particle Gun > --- INVENTORY -------- Light Ion Engine Light Ion Engine Light Treads Light Treads Light Treads Compact Wheel Compact Wheel Medium Storage Unit Large Storage Unit Large Battery Light Armor Plating Skeleton Box Small Laser Small Laser Assault Rifle Grenade Launcher Hammer [Rating: 14] Favorites ----------- Power Ion Engine Engine Ion Engine Propulsion Light Treads Treads Light Treads Utility High-capacity Storage Unit Device Seismic Detector Storage High-capacity Storage Unit Hackware Hacking Suite Weapon Assault Rifle Energy Gun Small Laser Ballistic Gun Assault Rifle Ballistic Cannon Improved Light Cannon Build | -11 -10 -10 -10 -9 ------- Run | Yrd Mat Min Exi Min Slots Evolved . | . . . . . Power . | . . . . . Propulsion . | . . . . . Utility . | . . . . . Weapon . | . . . . . Parts Attached 23 | 7 7 . . 9 Power 3 | 1 1 . . 1 Engine 3 | 1 1 . . 1 Core . | . . . . . Reactor . | . . . . . Propulsion 4 | 2 . . . 2 Treads 4 | 2 . . . 2 Leg . | . . . . . Wheel . | . . . . . Hover . | . . . . . Flight . | . . . . . Utility 6 | 2 4 . . . Device 1 | 1 . . . . Storage 4 | 1 3 . . . Processor . | . . . . . Hackware 1 | . 1 . . . Protection . | . . . . . Artifact . | . . . . . Weapon 10 | 2 2 . . 6 Energy Gun 4 | 1 . . . 3 Energy Cannon . | . . . . . Ballistic Gun 5 | 1 2 . . 2 Ballistic Cannon 1 | . . . . 1 Launcher . | . . . . . Special Weapon . | . . . . . Impact Weapon . | . . . . . Slashing Weapon . | . . . . . Piercing Weapon . | . . . . . Special Melee Weapon . | . . . . . Unidentified Prototypes . | . . . . . Parts Lost 6 | . . . . 6 Power 1 | . . . . 1 Propulsion 2 | . . . . 2 Utility . | . . . . . Weapon 3 | . . . . 3 Highest Loss Streak 3 | . . . . 3 To Critical Strikes . | . . . . . Average Backups 14 | 1 14 14 15 16 Power 1 | . . 1 2 1 Propulsion 3 | . 3 4 4 4 Utility 4 | . 4 4 4 4 Weapon 5 | 1 5 5 5 5 Tool/Special . | . . . . . Unused Backups 16 | . 4 . . 12 Power 1 | . . . . 1 Propulsion 5 | . . . . 5 Utility 4 | . 2 . . 2 Weapon 5 | . 2 . . 3 Tool/Special 1 | . . . . 1 Average Slot Usage (%) 99 | . 99 100 100 99 Engine 14 | . 14 14 14 14 Treads 27 | . 27 28 28 27 Device 2 | . 7 . . . Storage 14 | . 14 14 14 14 Hackware 11 | . 6 14 14 14 Energy Gun 1 | . 1 . . 9 Ballistic Gun 25 | . 26 28 28 18 Peak Build Rating 14 | 7 10 10 11 14 Average Rating 9 | 5 8 10 10 11 On Entrance 7 | . 7 10 10 11 Naked Turns . | . . . . . Heaviest Build 53 | 13 50 49 49 53 Greatest Support 40 | 40 40 40 40 40 Greatest Overweight (x) 3 | 3 1 1 1 1 Average Overweight (x) . | . . 1 1 1 Largest Inventory Capacity 20 | 8 20 20 20 20 Average Capacity 18 | 7 18 20 20 20 Most Carried 19 | 4 17 15 16 19 Average Carried 14 | 1 14 14 15 16 Final Capacity 20 | 8 20 20 20 20 Final Carried 16 | 4 14 15 16 16 Class Distribution -------------------- 94% | Mutant 5% | Scavenger-Mutant Dominant Class ---------------- Mutant | -10/Materials Mutant | -10/Mines Mutant | -10/Exiles Mutant | -9/Mines Resources | -11 -10 -10 -10 -9 ----------- Run | Yrd Mat Min Exi Min Matter Collected 873 | 193 380 244 . 56 Remotely . | . . . . . Salvage Created 795 | 65 412 114 . 204 Parts 63 | 6 29 16 . 12 Haulers Intercepted 2 | . 2 . . . Recyclers Shooed 1 | . . . . 1 Parts Field Recycled . | . . . . . Retrieved Matter . | . . . . . Parts Self-Destructed . | . . . . . Prevented . | . . . . . Kills | -11 -10 -10 -10 -9 ------- Run | Yrd Mat Min Exi Min Combat Hostiles Destroyed 19 | . 9 8 . 2 Guns 19 | . 9 8 . 2 Classes Destroyed 9 | 2 6 . . 1 Builder 1 | . 1 . . . Tunneler 1 | 1 . . . . Hauler 2 | . 2 . . . Recycler 2 | 1 . . . 1 Operator 1 | . 1 . . . Watcher 3 | . 3 . . . Swarmer 14 | . 6 8 . . Grunt 3 | . 3 . . . Sentry 2 | . . . . 2 Best Kill Streak 3 | 1 3 3 . 3 Combat Bots Only 3 | . 3 3 . 2 Max Kills in Single Turn 1 | 1 1 1 . 1 Gunslinging . | . . . . . Exploded . | . . . . . Melee . | . . . . . Uniques/NPCs Destroyed . | . . . . . Combat | -11 -10 -10 -10 -9 -------- Run | Yrd Mat Min Exi Min Hostile Shots Fired 136 | . 32 34 . 70 Missed 37 | . 10 7 . 20 Hits 99 | . 22 27 . 50 Projectile 99 | . 22 27 . 50 AOE 24 | . . . . 24 Critical Strikes 4 | . 1 . . 3 Damage Taken 1580 | . 218 217 . 1145 Core 258 | . 25 26 . 207 Absorbed by Shields . | . . . . . Regen/Repaired (Parts) 217 | . 217 . . . Core Remaining (%) 100 | 100 . . . . Volleys Fired 101 | 10 56 16 . 19 Largest 2 | 2 2 2 . 2 Hottest 121 | 60 60 40 . 121 Shots Fired 202 | 20 112 32 . 38 Gun 199 | 20 112 32 . 35 Cannon 3 | . . . . 3 Launcher . | . . . . . Special . | . . . . . Kinetic 165 | 10 107 32 . 16 Thermal 37 | 10 5 . . 22 Explosive . | . . . . . Electromagnetic . | . . . . . Robot Hit Streak 13 | 5 12 3 . 13 Robot Miss Streak 5 | 3 5 2 . 2 Penetration Max . | . . . . . Secondary Targets 1 | . . 1 . . Max Gunslinging Chain 1 | . . 1 . . Shots Hit Robots 122 | 13 63 17 . 29 Core Hits 47 | 5 26 8 . 8 Critical Kills 2 | . 1 1 . . Critical Parts Destroyed 1 | . 1 . . . Critical Strikes 3 | . 2 1 . . Destroy 3 | . 2 1 . . Melee Attacks . | . . . . . Impact . | . . . . . Slashing . | . . . . . Piercing . | . . . . . Sneak Attacks . | . . . . . Combat Hostiles . | . . . . . Follow-up Attacks . | . . . . . Damage Inflicted 1537 | 136 770 229 . 402 Guns 1485 | 136 770 229 . 350 Cannons 48 | . . . . 48 Explosions . | . . . . . Melee . | . . . . . Ramming 4 | . . . . 4 Kinetic 1192 | 37 740 229 . 186 Thermal 341 | 99 30 . . 212 Explosive . | . . . . . Electromagnetic . | . . . . . Impact . | . . . . . Slashing . | . . . . . Piercing . | . . . . . Highest Corruption . | . . . . . Average Corruption . | . . . . . Corruption Purged . | . . . . . Corruption Blocked . | . . . . . Overload Shots . | . . . . . Overflow Damage . | . . . . . Projectiles . | . . . . . Explosions . | . . . . . Melee . | . . . . . Knockbacks 1 | . . . . 1 Impact . | . . . . . Kinetic 1 | . . . . 1 Secondary . | . . . . . Self-Inflicted Damage . | . . . . . Shots . | . . . . . Rammed 1 | . . . . 1 Targets Rammed 1 | . . . . 1 Kicked . | . . . . . Crushed . | . . . . . Highest Temperature 252 | 60 20 . . 252 Average Temperature 76 | 30 12 . . 106 Received Heat Transfer 243 | . 27 . . 216 Siege Activations . | . . . . . Martial Activations . | . . . . . Shielding Activations . | . . . . . Robots Disrupted . | . . . . . Combat Hostiles . | . . . . . Robots Corrupted . | . . . . . Combat Hostiles . | . . . . . Parts Fried . | . . . . . Impact Corruptions . | . . . . . Robots Melted . | . . . . . Combat Hostiles . | . . . . . Parts Melted 1 | . . . . 1 Heat Transferred 797 | 225 75 . . 497 Parts Sabotaged . | . . . . . Parts Stolen . | . . . . . Parts Stripped . | . . . . . Power Chain Reactions . | . . . . . Alert | -11 -10 -10 -10 -9 ------- Run | Yrd Mat Min Exi Min Maximum Alert Level . | . . . . . Low Security (%) 100 | 100 100 100 . 100 Level 1 . | . . . . . Level 2 . | . . . . . Level 3 . | . . . . . Level 4 . | . . . . . Level 5 . | . . . . . High Security . | . . . . . Max Security . | . . . . . Peak Influence 85 | 5 85 70 . 45 Initial . | . . . . . Average 9 | . 13 8 . 2 Influence Increases 573 | 10 328 190 . 45 Destroy 0b10 Robot/C 380 | . 180 160 . 40 Destroy 0b10 Robot/NC 50 | 10 35 . . 5 Destroy Leader 80 | . 50 30 . . Successful Hack 30 | . 30 . . . Destroy Structure 3 | . 3 . . . Lose Combat Pursuer 30 | . 30 . . . Influence Decreases 573 | 10 328 190 . 45 Time Decay 573 | 10 328 190 . 45 Squads Dispatched 1 | . 1 . . . Investigation . | . . . . . Extermination . | . . . . . Reinforcement 1 | . 1 . . . Assault . | . . . . . Garrison . | . . . . . Intercept . | . . . . . Searches Triggered . | . . . . . Construction Impeded . | . . . . . Haulers Reinforced . | . . . . . Active Scanning Responses . | . . . . . Cargo Convoy Interrupts . | . . . . . Stealth | -11 -10 -10 -10 -9 --------- Run | Yrd Mat Min Exi Min Distress Signals 1 | . . 1 . . Communications Jammed . | . . . . . Distress Signals . | . . . . . Times Spotted 33 | . 21 9 . 3 Peak Tracking Total 3 | . 3 3 . 2 Tactical Retreats 2 | . 2 . . . Traps | -11 -10 -10 -10 -9 ------- Run | Yrd Mat Min Exi Min Traps Triggered 2 | . 2 . . . Indirectly . | . . . . . Trap Hack Attempts . | . . . . . Triggered . | . . . . . Disarmed . | . . . . . Reprogrammed . | . . . . . Reused . | . . . . . Traps Extracted . | . . . . . Installed . | . . . . . Triggered . | . . . . . Machines | -11 -10 -10 -10 -9 ---------- Run | Yrd Mat Min Exi Min Machines Disabled . | . . . . . Max in Single Turn . | . . . . . Machines Repaired . | . . . . . Machines Dismantled . | . . . . . Machines Sabotaged . | . . . . . Overloaded Fab Kills . | . . . . . Hacking | -11 -10 -10 -10 -9 --------- Run | Yrd Mat Min Exi Min Machines Accessed 11 | . 10 . 1 . Terminals 7 | . 7 . . . Fabricators . | . . . . . Repair Stations 1 | . 1 . . . Recycling Units 2 | . 2 . . . Scanalyzers . | . . . . . Garrison Access . | . . . . . Total Hacks 45 | . 44 . 1 . Successful 36 | . 35 . 1 . Failed 9 | . 9 . . . Catastrophic . | . . . . . Database Lockouts . | . . . . . Manual 20 | . 19 . 1 . Terminals 20 | . 20 . . . Fabricators . | . . . . . Repair Stations 14 | . 14 . . . Recycling Units 10 | . 10 . . . Scanalyzers . | . . . . . Garrison Access . | . . . . . Terminal Hacks 11 | . 10 . 1 . Robot Analysis 4 | . 4 . . . Terminal Index 1 | . 1 . . . Alert Level 1 | . 1 . . . Registered Components 1 | . 1 . . . Zone Layout 3 | . 3 . . . Proto ID Catalog 1 | . . . 1 . Fabricator Hacks . | . . . . . Repair Station Hacks 14 | . 14 . . . Scan Component 7 | . 7 . . . Repair 7 | . 7 . . . Recycling Unit Hacks 5 | . 5 . . . Report Inventory 2 | . 2 . . . Retrieve Matter 2 | . 2 . . . Retrieve Components 1 | . 1 . . . Scanalyzer . | . . . . . Garrison Access Hacks . | . . . . . Unauthorized Hacks 6 | . 6 . . . Terminals 3 | . 3 . . . Botnet 3 | . 3 . . . Fabricators . | . . . . . Repair Stations . | . . . . . Recycling Units 3 | . 3 . . . Reject 1 | . 1 . . . Recyclers 1 | . 1 . . . Mask 1 | . 1 . . . Scanalyzers . | . . . . . Garrison Access . | . . . . . Data Cores Recovered . | . . . . . Used . | . . . . . Hacking Detections 9 | . 9 . . . Full Trace Events 1 | . 1 . . . Feedback Events . | . . . . . Feedback Blocked . | . . . . . Robot Schematics Acquired . | . . . . . Robots Built . | . . . . . Authchips . | . . . . . Time . | . . . . . Total Robot Build Rating . | . . . . . Part Schematics Acquired . | . . . . . Parts Built . | . . . . . Authchips . | . . . . . Time . | . . . . . Total Part Build Rating . | . . . . . Parts Repaired 7 | . 7 . . . Time 194 | . 194 . . . Parts Recycled . | . . . . . Recycled Matter . | . . . . . Retrieved Matter . | . . . . . Retrieved Components 4 | . 4 . . . Parts Scanalyzed . | . . . . . Part Schematics Acquired . | . . . . . Parts Damaged . | . . . . . Bothacking | -11 -10 -10 -10 -9 ------------ Run | Yrd Mat Min Exi Min Used RIF Installer . | . . . . . Robots Hacked . | . . . . . Non-combat . | . . . . . Combat . | . . . . . Robot Hacks Applied . | . . . . . Relay Couplers Released . | . . . . . Fabnet Peak Effective % . | . . . . . Robots Rewired . | . . . . . Allies Hacked . | . . . . . Hacks Repelled . | . . . . . Allies | -11 -10 -10 -10 -9 -------- Run | Yrd Mat Min Exi Min Total Allies . | . . . . . Largest Group . | . . . . . Highest-Rated Group . | . . . . . Highest-Rated Ally . | . . . . . Total Orders . | . . . . . Ally Attacks . | . . . . . Total Damage . | . . . . . Kills . | . . . . . Allies Corrupted . | . . . . . Allies Melted . | . . . . . Intel | -11 -10 -10 -10 -9 ------- Run | Yrd Mat Min Exi Min Active Infowar (turns) 1233 | 60 1173 . . . Seismic 1233 | 60 1173 . . . Robot Analysis Total 4 | . 4 . . . Derelict Logs Recovered 2 | . . 1 . 1 Drone Launches . | . . . . . Drone Recoveries . | . . . . . Exploration | -11 -10 -10 -10 -9 ------------- Run | Yrd Mat Min Exi Min Turns Passed 5708 | 170 2183 1937 501 917 Spaces Moved 2168 | 79 796 745 209 339 Core 24 | 24 . . . . Treads 2144 | 55 796 745 209 339 Legs . | . . . . . Wheels . | . . . . . Hover . | . . . . . Flight . | . . . . . Fastest Speed 50 | 50 160 240 240 240 Average Speed 226 | 162 209 240 240 240 Slowest Speed 240 | 200 240 240 240 240 Overloaded Moves . | . . . . . Propulsion Burnouts . | . . . . . Robots Hopped . | . . . . . Potential Cave-ins . | . . . . . Cave-ins Triggered . | . . . . . Exploration Rate (%) 65 | 5 97 99 59 68 Regions Visited 4 Branch Regions 3 Pre-discovered Areas 1 | . . 1 . . Known Exits Taken . | . . . . . Unknown Exits Taken 4 | 1 1 1 1 . Scrap Searched 1 | . . 1 . . Spaces Dug . | . . . . . Terrain Destroyed . | . . . . . Melee . | . . . . . Projectile . | . . . . . AOE . | . . . . . Terrain Rammed . | . . . . . Walls Destroyed . | . . . . . Machines Disabled . | . . . . . Actions | -11 -10 -10 -10 -9 --------- Run | Yrd Mat Min Exi Min Total 2767 | 99 1194 863 209 402 Wait 433 | . 310 102 . 21 Move 2164 | 78 795 744 208 339 Hop . | . . . . . Pick Up 26 | 4 14 1 1 6 Fast Attach 12 | 7 5 . . . Attach 4 | . . . . 4 Detach . | . . . . . Swap 15 | . 8 . . 7 Drop 11 | . 6 . . 5 Fire 101 | 10 56 16 . 19 Melee . | . . . . . Ram . | . . . . . Kick . | . . . . . Crush 1 | . . . . 1 Escape Stasis . | . . . . . Rewire . | . . . . . Trap . | . . . . . Miscellaneous . | . . . . . Route ------- -11/Scrapyard -10/Materials (discovered 6 exits: [*Mat x3] / [*Min x2] / [*Sub]) -10/Mines (discovered 4 exits: [*Mat x2] / *Exi / [*Sub]) -10/Exiles -9/Mines (discovered 1 exit: [*Mat]) History --------- Turn | Location | Event 9 | -11/Scrapyard | Discovered new exit (range 16) 171 | -11/Scrapyard | Entered Materials 305 | -10/Materials | Build established: Mutant 350 | -10/Materials | Discovered new exit (range 7) 487 | -10/Materials | Discovered new exit (range 13) 503 | -10/Materials | Discovered new exit (range 19) 735 | -10/Materials | Discovered new exit (range 16) 792 | -10/Materials | Discovered new exit (range 8) 1379 | -10/Materials | Discovered new exit (range 9) 1922 | -10/Materials | Repaired Lgt. Treads 1950 | -10/Materials | Repaired Ion Engine 1978 | -10/Materials | Repaired Assault Rifle 2005 | -10/Materials | Repaired Lgt. Treads 2032 | -10/Materials | Repaired Lgt. Treads 2060 | -10/Materials | Repaired Assault Rifle 2104 | -10/Materials | Repaired Imp. Heat Sink 2354 | -10/Materials | Entered Mines 2375 | -10/Mines | Met a Derelict bent on vengeance 2395 | -10/Mines | Assembled infested the area 2524 | -10/Mines | Learned location of Zion (-7) 3077 | -10/Mines | Found a hidden stash of uninstalled traps 3111 | -10/Mines | Discovered new exit (range 11) 3279 | -10/Mines | Discovered new exit (range 6) 3809 | -10/Mines | Discovered new exit (range 6) 4279 | -10/Mines | Discovered new exit (range 5) 4291 | -10/Mines | Entered Exiles 4349 | -10/Exiles | Met 8R-AWN 4390 | -10/Exiles | Met EX-HEX 4459 | -10/Exiles | Met EX-BIN 4486 | -10/Exiles | Aligned with FarCom system 4488 | -10/Exiles | Given EX-Vault access code 4543 | -10/Exiles | Opened EX-Vault 4563 | -10/Exiles | Found Skeleton Box 4612 | -10/Exiles | Warned to stay clear of 0b10 Research branches 4681 | -10/Exiles | Met EX-DEC 4760 | -10/Exiles | Discovered new exit (range 14) 4792 | -10/Exiles | Left Exiles lab with Skeleton Box 4792 | -10/Exiles | Entered Mines 4800 | -9/Mines | Discovered new exit (range 12) 5423 | -9/Mines | Lost 3 parts (1n2w) 5680 | -9/Mines | Build established: Scavenger-Mutant 5694 | -9/Mines | Core integrity fell below 50% 5702 | -9/Mines | Core integrity fell below 20% 5709 | -9/Mines | Destroyed by YI-UF0 with YI-UF0's Doublenader Last Messages --------------- K-01 Serf cleans the Pressure Siphon. The unstable cave ceiling collapses. YI-UF0 mumbles something. The unstable cave ceiling collapses. K-01 Serf collects debris. K-01 Serf cleans the Pressure Siphon. Slammed into K-01 Serf. YI-UF0: "WHAAM!" K-01 Serf destroyed. The unstable cave ceiling collapses. T-07 Excavator destroyed. K-01 Serf cleans the Pressure Siphon. YI-UF0 mumbles something. The unstable cave ceiling collapses. Particle Gun destroyed. Lgt. Treads destroyed. The unstable cave ceiling collapses. YI-UF0 knocked back. Imp. Ion Engine destroyed. The unstable cave ceiling collapses. Map ----- +----------------------------------------------------+ | ?????????????????????????????????????????????????? | | ?????????????????????????????????????????????????? | | ?????????????????????????????????????????????????? | | ?????????????????????????????????????????????????? | | ?????????????????????????????????????????????????? | | ?????????????????????????????????????????????????? | | ?????????????????????????????????????????????????? | | ?????????????????????????????????????????????????? | | ?????????????????????????????????????????????????? | | ??????????####???????????????????????????????????? | | #####????## ##??????????????????????????????????? | | ###### #??????????????????????????????????? | | #???????????###????????????????????? | | ### ##### ##?????????? $ ????????????????????? | | ??# #???## #?????????? #????????????????????? | | ??# #????## #?????????? #????????????????????? | | ??# ##???## ##??????#### #????????????????????? | | ?## ##### ##???????# #????????????????????? | | ?# ##???????# ###??????????????????? | | ?# ##????### # ###????????????????? | | ## #??### ###??????????????? | | ### ##?# ######?????????? | | ##?## #### #?????????? | | #???# ### ????????? | | # #??# k #???????????????? | | ##### #?# """" @ #????????????????? | | ?????# ### """" #????????????????? | | ?????? ## """" ##????????????????? | | ?????? ## # #?????????????????? | | #????? ### ### ###?????????????????? | | ##????? ### ##? # #?????????????????? | | #????? ##?# #?? # ! ###?????????????????? | | #?????#??# #?# % ???????????????????? | | ##???????# #? # ??????????????????? | | #????????# ##? # #?????????????????? | | ?????????## ###?? # ##?????????????????? | | ??????????## ##???# g #?????????????????? | | ???????????## ##????# % ##??????????????????? | | ????????????####?????# % #???????????????????? | | ?????????????????????# ???????????????????? | | ??????????????????????## ????????????????????? | | ??????????????????????# ?????????????????????? | | ??????????????????????? ?????????????????????? | | ???????????????????????? #???????????#?????????? | | ????????????????????????# #??????????? #????????? | | ????????????????????????# #??????????? #???????? | | #??????????????????????## ##???????#?? ###????? | | #????????############### ####### ## #####? | | #????????# #? | | #????????# #? | +----------------------------------------------------+ Best States ------------- Heat Dissipation 25 Energy Generation 12 Energy Capacity 265 Matter Stores 300 Matter Capacity 300 Sight Range 16 Terrain Scan Density 10 Evasion (%) 40 Recoil Reduction 2 Offensive Hacking 10 Item Schematics ----------------- None Robot Schematics ------------------ None Fabricated ------------ Nothing Repaired ---------- Lgt. Treads | 57% | -10/Materials Ion Engine | 16% | -10/Materials Assault Rifle | 57% | -10/Materials Lgt. Treads | 81% | -10/Materials Lgt. Treads | 89% | -10/Materials Assault Rifle | 81% | -10/Materials Imp. Heat Sink | 87% | -10/Materials Alien Tech Used ----------------- None Achievements -------------- None Challenges ------------ None Game ------ Seed CoilBraceRigger Manual? 0 Play Time 00:29:22 Cumulative 128.8 hours Start 2025.06.08 @ 13:56:02 End 2025.06.08 @ 15:43:01 Sessions 1 Manual Loads 0 Difficulty Rogue Special Mode None Game No. 161 Rogue 161 Adventurer 0 Explorer 0 Win Type - Total 0 Types 0/0/0/0/0/0/0/0/0/0 Lore% 40 Gallery% 37 Achievement% 33 Wizard Run 0 Options --------- Layout 1 ASCII 0 Keyboard 0 Movement Mouse Keybinds 0 Fullscreen 1 Font 32/SmallcapsGlow Map View 50x40 Zoom Use 0% Tactical HUD 0 Map Filters NONE Filters NONE Steam 1 RUN: 123b43f5-5c56-4286-a5a8-4ae06c232905